bitfinex/quotes_BTCUSD_20240727
["timestamp","ask_amount","ask_price","bid_price","bid_amount"]
[1722046872151,0.06690848,67893.0,67892.0,1.488961]
[1722046872750,0.06690848,67893.0,67892.0,1.502961]
[1722046875509,0.09002038,67893.0,67892.0,1.502961]
[1722046876239,0.06690848,67893.0,67892.0,1.502961]
[1722046879463,0.09002021,67893.0,67892.0,1.502961]
[1722046879844,0.06690848,67893.0,67892.0,1.502961]
[1722046882639,0.06690848,67893.0,67892.0,1.439861]
[1722046887502,0.09002021,67893.0,67892.0,1.439861]
[1722046888112,0.06690848,67893.0,67892.0,1.439861]
[1722046891433,0.09002021,67893.0,67892.0,1.439861]
[1722046894156,0.09002021,67893.0,67892.0,1.145276]
[1722046894461,0.09002021,67893.0,67892.0,1.439861]
[1722046895519,0.06690848,67893.0,67892.0,1.439861]
[1722046898092,0.06690848,67893.0,67892.0,1.501061]
[1722046898864,0.09002021,67893.0,67892.0,1.501061]
[1722046899277,0.06690848,67893.0,67892.0,1.501061]
[1722046899494,0.06690848,67893.0,67892.0,1.629461]
[1722046900226,0.06690848,67893.0,67892.0,2.32420416]
[1722046900395,0.06690848,67893.0,67892.0,2.11586324]
[1722046900752,0.06690848,67893.0,67892.0,1.86596465]
[1722046900935,0.06690848,67893.0,67892.0,2.11586324]
[1722046901068,0.06690848,67893.0,67892.0,2.08786324]
[1722046901471,0.06690848,67893.0,67892.0,2.11586324]
[1722046902025,0.06690848,67893.0,67892.0,2.10186324]
[1722046902523,0.09001928,67893.0,67892.0,2.10186324]
[1722046903410,0.09001928,67893.0,67892.0,2.41062095]
[1722046904530,0.09001928,67893.0,67892.0,2.11603595]
[1722046906525,0.09001928,67893.0,67892.0,2.02961916]
[1722046906716,0.09001928,67893.0,67892.0,2.41249186]
[1722046906941,0.09001928,67893.0,67892.0,2.11790686]
[1722046907276,0.09001928,67893.0,67892.0,2.41249186]
[1722046907479,0.09001928,67893.0,67892.0,2.11790686]
[1722046907480,0.09157348,67893.0,67892.0,2.11790686]
[1722046907687,0.09157348,67893.0,67892.0,2.41249186]
[1722046907902,0.09157348,67893.0,67892.0,2.11790686]
[1722046908117,0.09001928,67893.0,67892.0,2.11790686]
[1722046908778,0.09001928,67893.0,67892.0,2.41249186]
[1722046908989,0.09001928,67893.0,67892.0,2.11790686]
[1722046909936,0.09001928,67893.0,67892.0,2.1178989]
[1722046910138,0.09001928,67893.0,67892.0,2.4124839]
[1722046910486,0.03542197,67893.0,67892.0,2.1178989]
[1722046910891,0.03542197,67893.0,67892.0,2.4124839]
[1722046911092,0.09053344,67893.0,67892.0,2.4124839]
[1722046912407,0.09053344,67893.0,67892.0,2.1178989]
[1722046912948,0.09053344,67893.0,67892.0,2.4124839]
[1722046913358,0.09053344,67893.0,67892.0,2.41245801]
[1722046913564,0.09053344,67893.0,67892.0,1.86797442]
[1722046914176,0.09053344,67893.0,67892.0,2.16255942]
[1722046914375,0.09053344,67893.0,67892.0,1.86797442]
[1722046914823,0.17003344,67893.0,67892.0,1.44281485]
[1722046915016,0.23637699,67893.0,67892.0,1.439861]
[1722046915221,0.2364784,67893.0,67892.0,1.439861]
[1722046915423,0.36780938,67893.0,67892.0,1.439861]
[1722046916197,0.27935131,67893.0,67892.0,1.439861]
[1722046916666,0.36790588,67893.0,67892.0,0.765391]
[1722046916907,0.27945272,67893.0,67892.0,0.765391]
[1722046917128,0.36790588,67893.0,67892.0,0.765391]
[1722046917727,0.36790588,67893.0,67892.0,0.751391]
[1722046918138,0.27945272,67893.0,67892.0,0.765391]
[1722046918542,0.27976724,67893.0,67892.0,0.765391]
[1722046918738,0.236463,67893.0,67892.0,0.765391]
[1722046918998,0.2133522,67893.0,67892.0,0.765391]
[1722046919116,0.2133522,67893.0,67892.0,0.751391]
[1722046919635,0.2133522,67893.0,67892.0,0.765391]
[1722046919828,0.21334913,67893.0,67892.0,0.765391]
[1722046920054,0.21334913,67893.0,67892.0,1.059976]
[1722046920254,0.21324772,67893.0,67892.0,1.059976]
[1722046920853,0.14692264,67893.0,67892.0,1.059976]
[1722046921582,0.14702405,67893.0,67892.0,0.765391]
[1722046922015,0.14702405,67893.0,67892.0,1.059976]
[1722046922212,0.23646096,67893.0,67892.0,0.765391]
[1722046922414,0.17013588,67893.0,67892.0,0.765391]
[1722046922561,0.2795718,67893.0,67892.0,0.765391]
[1722046922757,0.25645997,67893.0,67892.0,0.765391]
[1722046923874,0.25645997,67893.0,67892.0,1.059976]
[1722046924320,0.25645997,67893.0,67892.0,0.765391]
[1722046924748,0.25645997,67893.0,67892.0,1.059976]
[1722046924951,0.14702405,67893.0,67892.0,1.059976]
[1722046925096,0.21333497,67893.0,67892.0,1.059976]
[1722046925298,0.13612018,67893.0,67892.0,1.059976]
[1722046925494,0.01231117,67893.0,67892.0,1.059976]
[1722046926098,0.035423,67893.0,67892.0,1.059976]
[1722046926912,0.07963148,67893.0,67892.0,1.059976]
[1722046927330,0.03552441,67893.0,67892.0,1.059976]
[1722046927660,0.035423,67893.0,67892.0,1.059976]
[1722046928248,0.09056043,67893.0,67892.0,1.059976]
[1722046931500,0.13476771,67893.0,67892.0,1.059976]
[1722046931708,0.09056043,67893.0,67892.0,1.059976]
[1722046932714,0.13476615,67893.0,67892.0,1.059976]
[1722046933112,0.07962872,67893.0,67892.0,1.059976]
[1722046933311,0.13556075,67893.0,67892.0,1.059976]
[1722046934513,0.13566216,67893.0,67892.0,1.059976]
[1722046934718,0.13556075,67893.0,67892.0,1.059976]
[1722046935578,0.09135503,67893.0,67892.0,1.059976]
[1722046935731,0.13557738,67893.0,67892.0,1.059976]
[1722046936862,0.13567879,67893.0,67892.0,1.059976]
[1722046937403,0.13567879,67893.0,67892.0,1.145276]
[1722046938014,0.09145644,67893.0,67892.0,1.145276]
[1722046938188,0.24490776,67893.0,67892.0,1.145276]
[1722046938334,0.13468061,67893.0,67892.0,1.145276]
[1722046938974,0.13468061,67893.0,67892.0,0.323514]
[1722046938975,0.32319501,67893.0,67892.0,0.323514]
[1722046939322,1.24533521,67893.0,67892.0,0.323514]
[1722046939432,1.62514211,67893.0,67892.0,0.323514]
[1722046939663,1.64814211,67893.0,67892.0,0.323514]
[1722046940071,1.64814211,67893.0,67892.0,0.309514]
[1722046940324,1.64814211,67893.0,67892.0,0.323514]
[1722046940863,1.64814211,67893.0,67892.0,0.309514]
[1722046941213,1.57301232,67893.0,67892.0,0.311514]
[1722046941772,1.57301232,67893.0,67892.0,0.297514]
[1722046941906,1.57301232,67893.0,67892.0,0.311514]
[1722046942112,1.5739715,67893.0,67892.0,0.297514]
[1722046942634,1.70637575,67893.0,67892.0,0.295514]
[1722046942836,0.82050604,67893.0,67892.0,0.297514]
[1722046943010,0.29961204,67893.0,67892.0,0.300514]
[1722046943215,0.30116624,67893.0,67892.0,0.300514]
[1722046943617,0.29935577,67893.0,67892.0,0.300514]
[1722046943818,0.29935577,67893.0,67892.0,0.447806]
[1722046944019,0.21915577,67893.0,67892.0,0.742391]
[1722046944427,0.32953975,67893.0,67892.0,0.742391]
[1722046945049,0.21107316,67893.0,67892.0,0.742391]
[1722046945225,0.12276298,67893.0,67892.0,0.742391]
[1722046945454,0.190319,67893.0,67892.0,1.036976]
[1722046945650,0.18899463,67893.0,67892.0,0.742391]
[1722046945804,0.21210843,67893.0,67892.0,0.742391]
[1722046946034,0.26777308,67893.0,67892.0,0.742391]
[1722046946637,0.26777308,67893.0,67892.0,0.740391]
[1722046946836,0.20154143,67893.0,67892.0,0.750391]
[1722046947156,0.24465928,67893.0,67892.0,0.750391]
[1722046947576,0.17842763,67893.0,67892.0,0.750391]
[1722046947738,0.17832622,67893.0,67892.0,1.044976]
[1722046947941,0.244557,67893.0,67892.0,1.044976]
[1722046948189,0.244557,67893.0,67892.0,1.041976]
[1722046948599,0.244557,67893.0,67892.0,1.052976]
[1722046948801,0.17832622,67893.0,67892.0,1.052976]
[1722046948958,0.24455749,67893.0,67892.0,1.052976]
[1722046949877,0.24455749,67893.0,67892.0,1.347561]
[1722046951078,0.24455749,67893.0,67892.0,1.414161]
[1722046951280,0.06797582,67893.0,67892.0,1.414161]
[1722046951472,0.06797582,67893.0,67892.0,1.497061]
[1722046953209,0.06797582,67893.0,67892.0,1.487061]
[1722046953409,0.06797582,67893.0,67892.0,1.488061]
[1722046953954,0.06797582,67893.0,67892.0,1.476061]
[1722046954304,0.09108797,67893.0,67892.0,1.489061]
[1722046954744,0.09108797,67893.0,67892.0,1.53895959]
[1722046955343,0.06797582,67893.0,67892.0,1.502061]
[1722046955556,0.06797582,67893.0,67892.0,1.53895959]
[1722046955688,0.06797582,67893.0,67892.0,1.489061]
[1722046955889,0.06797582,67893.0,67892.0,1.503061]
[1722046957264,0.06797582,67893.0,67892.0,1.489061]
[1722046957460,0.06797582,67893.0,67892.0,2.23380416]
[1722046957659,0.06797582,67893.0,67892.0,1.97090557]
[1722046957917,0.06797582,67893.0,67892.0,1.69032057]
[1722046958310,0.06797582,67893.0,67892.0,1.55742057]
[1722046958553,0.06797582,67893.0,67892.0,1.62142057]
[1722046958737,0.0910877,67893.0,67892.0,1.62142057]
[1722046959244,0.0910877,67893.0,67892.0,1.60742057]
[1722046959448,0.06797582,67893.0,67892.0,1.62142057]
[1722046959849,0.06797582,67893.0,67892.0,1.60742057]
[1722046960064,0.06797582,67893.0,67892.0,1.59342057]
[1722046960303,0.06797582,67893.0,67892.0,1.62142057]
[1722046960688,0.06797582,67893.0,67892.0,1.87131916]
[1722046960885,0.06797582,67893.0,67892.0,1.62142057]
[1722046961094,0.06797582,67893.0,67892.0,1.87131916]
[1722046962839,0.09108758,67893.0,67892.0,1.87131916]
[1722046963402,0.09108758,67893.0,67892.0,1.95021916]
[1722046965826,0.09108758,67893.0,67892.0,1.70032057]
[1722046967316,0.09108758,67893.0,67892.0,1.95021916]
[1722046968138,0.09108758,67893.0,67892.0,2.24480416]
[1722046970024,0.09108758,67893.0,67892.0,2.24680416]
[1722046973054,0.09108758,67893.0,67892.0,2.33912518]
[1722046974588,0.09108758,67893.0,67892.0,2.31112518]
[1722046974764,0.09108758,67893.0,67892.0,2.32512518]
[1722046974974,0.09108758,67893.0,67892.0,2.33912518]
[1722046975781,0.09108758,67893.0,67892.0,2.33911034]
[1722046979011,0.09108758,67893.0,67892.0,2.24680416]
[1722046979225,0.09108758,67893.0,67892.0,2.33921229]
[1722046979777,0.09108758,67893.0,67892.0,2.63379729]
[1722046981463,0.06797582,67893.0,67892.0,2.54138916]
[1722046981664,0.06797582,67893.0,67892.0,2.63394888]
[1722046982171,0.06797582,67893.0,67892.0,2.63194888]
[1722046983086,0.06797582,67893.0,67892.0,2.63394888]
[1722046984869,0.06797582,67893.0,67892.0,2.63399986]
[1722046986900,0.07442972,67893.0,67892.0,2.63399986]
[1722046988096,0.05650465,67893.0,67892.0,2.63395292]
[1722046989291,0.07961442,67893.0,67892.0,2.63395292]
[1722046990053,0.09722419,67893.0,67892.0,2.63395292]
[1722046990632,0.07411442,67893.0,67892.0,2.63395292]
[1722046990861,0.05650465,67893.0,67892.0,2.63395292]
[1722046991244,0.07327828,67893.0,67892.0,2.63395292]
[1722046991570,0.05650465,67893.0,67892.0,2.63395292]
[1722046992159,0.07323985,67893.0,67892.0,2.63395292]
[1722046992818,0.05650465,67893.0,67892.0,2.63395292]
[1722046993244,0.07406879,67893.0,67892.0,2.63395292]
[1722046993883,0.09717883,67893.0,67892.0,2.63395292]
[1722046994824,0.07961469,67893.0,67892.0,2.63395292]
[1722046995095,0.1030171,67893.0,67892.0,2.63330991]
[1722046995851,0.07961469,67893.0,67892.0,2.63330991]
[1722046996643,0.10228669,67893.0,67892.0,2.63330991]
[1722046996790,0.07961469,67893.0,67892.0,2.63330991]
[1722046998176,0.07961469,67893.0,67892.0,2.54138916]
[1722046998395,0.07961469,67893.0,67892.0,2.6338136]
[1722047003220,0.07961469,67893.0,67892.0,2.7338136]
[1722047003825,0.07961469,67893.0,67892.0,2.79499697]
[1722047004005,0.07961469,67893.0,67892.0,2.76699697]
[1722047004190,0.07961469,67893.0,67892.0,2.7198136]
[1722047004392,0.07961469,67893.0,67892.0,2.7338136]
[1722047004824,0.07961469,67893.0,67892.0,2.64138916]
[1722047005028,0.07961469,67893.0,67892.0,2.73413093]
[1722047008399,0.07961469,67893.0,67892.0,2.73417521]
[1722047011650,0.07961469,67893.0,67892.0,2.73416517]
[1722047011825,0.07961469,67893.0,67892.0,2.72016517]
[1722047012170,0.07961469,67893.0,67892.0,2.74816517]
[1722047014830,0.07961469,67893.0,67892.0,2.74781997]
[1722047018016,0.07961469,67893.0,67892.0,2.80900475]
[1722047018231,0.07961469,67893.0,67892.0,2.74781997]
[1722047018232,0.05650465,67893.0,67892.0,2.74781997]
[1722047020845,0.05650465,67893.0,67892.0,2.65538916]
[1722047021063,0.05650465,67893.0,67892.0,2.74790896]
[1722047021828,0.07961377,67893.0,67892.0,2.65538916]
[1722047022048,0.07961377,67893.0,67892.0,2.74791013]
[1722047022695,0.05650465,67893.0,67892.0,2.74791013]
[1722047024248,0.05650465,67893.0,67892.0,2.93071862]
[1722047024458,0.05650465,67893.0,67892.0,2.97489969]
[1722047024955,0.05650465,67893.0,67892.0,2.86953399]
[1722047025132,0.05650465,67893.0,67892.0,2.97490008]
[1722047025361,0.05650465,67893.0,67892.0,2.93071604]
[1722047025498,0.05650465,67893.0,67892.0,2.97490008]
[1722047025701,0.07961389,67893.0,67892.0,2.97490008]
[1722047026124,0.05650465,67893.0,67892.0,2.97490008]
[1722047027787,0.05650465,67893.0,67892.0,2.93071604]
[1722047028387,0.05650465,67893.0,67892.0,2.65538916]
[1722047028541,0.05650465,67893.0,67892.0,2.9309633]
[1722047029360,0.07961323,67893.0,67892.0,2.9309633]
[1722047031675,0.07961323,67893.0,67892.0,2.93085414]
[1722047031932,0.0083,67895.0,67894.0,0.30189859]
[1722047032093,0.0083,67895.0,67894.0,2.74764433]
[1722047032094,0.0543302,67895.0,67894.0,2.74764433]
[1722047032303,0.0543302,67895.0,67894.0,3.14222033]
[1722047032628,0.0543302,67895.0,67894.0,3.26383297]
[1722047033738,0.00831,67899.0,67898.0,0.30189859]
[1722047033978,0.0626402,67899.0,67898.0,1.60811223]
[1722047034224,0.04237761,67899.0,67898.0,2.19723023]
[1722047034494,0.04237761,67899.0,67898.0,3.26362314]
[1722047035111,0.04237761,67899.0,67898.0,3.2775548]
[1722047035279,0.04237761,67899.0,67898.0,3.27755171]
[1722047035704,0.04237761,67899.0,67898.0,3.33572781]
[1722047036270,0.04237761,67899.0,67898.0,3.29155171]
[1722047038201,0.00831,67899.0,67898.0,3.29155171]
[1722047038399,0.00831,67899.0,67898.0,3.16982865]
[1722047038601,0.00831,67899.0,67898.0,3.29130171]
[1722047040216,0.03141664,67899.0,67898.0,3.29130171]
[1722047040487,0.00831,67899.0,67898.0,3.29130171]
[1722047041044,0.00831,67899.0,67898.0,3.29997842]
[1722047044006,0.03141647,67899.0,67898.0,3.29997842]
[1722047044219,0.03141647,67899.0,67898.0,3.29994572]
[1722047044610,0.03141647,67899.0,67898.0,3.29991568]
[1722047045372,0.00084,67908.0,67902.0,2.06287959]
[1722047045601,0.00084,67908.0,67902.0,2.78497553]
[1722047045890,0.0855,67907.0,67902.0,2.41113353]
[1722047046044,0.0855,67907.0,67902.0,2.34743353]
[1722047046248,0.0855,67907.0,67902.0,2.34943353]
[1722047046616,0.0855,67907.0,67902.0,2.67197553]
[1722047046864,0.0855,67907.0,67902.0,2.65797553]
[1722047047081,0.00050578,67903.0,67902.0,2.64397553]
[1722047047294,0.00050578,67903.0,67902.0,2.65797553]
[1722047047513,0.00050578,67903.0,67902.0,2.67213179]
[1722047047966,0.00050578,67903.0,67902.0,2.65813179]
[1722047048559,0.00050578,67903.0,67902.0,2.64413179]
[1722047049016,0.02361058,67903.0,67902.0,2.73543179]
[1722047049747,0.02361058,67903.0,67902.0,2.74943179]
[1722047049951,0.02361058,67903.0,67902.0,2.73543179]
[1722047050280,0.02361058,67903.0,67902.0,2.74943179]
[1722047050695,0.02361058,67903.0,67902.0,2.74850183]
[1722047053025,0.02361058,67903.0,67902.0,2.81220183]
[1722047054124,0.02361058,67903.0,67902.0,2.72097916]
[1722047054260,0.02361058,67903.0,67902.0,2.87278596]
[1722047054906,0.02361058,67903.0,67902.0,2.99265014]
[1722047055963,0.00050578,67903.0,67902.0,2.99265014]
[1722047056680,0.00050578,67903.0,67902.0,2.87278596]
[1722047057308,0.00050578,67903.0,67902.0,2.8726414]
[1722047057745,0.00050578,67903.0,67902.0,2.81146861]
[1722047058416,0.00050578,67903.0,67902.0,2.87264182]
[1722047058622,0.00050578,67903.0,67902.0,2.81146861]
[1722047058837,0.00050578,67903.0,67902.0,2.73416861]
[1722047059085,0.00050578,67903.0,67902.0,2.29062661]
[1722047059257,0.02360973,67903.0,67902.0,2.43709999]
[1722047059469,0.00050578,67903.0,67902.0,2.73164199]
[1722047060052,0.00050578,67903.0,67902.0,2.67046861]
[1722047060679,0.00050578,67903.0,67902.0,2.67032411]
[1722047062580,0.02361007,67903.0,67902.0,2.67032411]
[1722047064950,0.02361007,67903.0,67902.0,2.37578211]
[1722047066570,0.02343281,67903.0,67902.0,2.37578211]
[1722047067182,0.02343281,67903.0,67902.0,2.28543716]
[1722047067384,0.02343281,67903.0,67902.0,2.37599073]
[1722047070506,0.02343281,67903.0,67902.0,2.28543716]
[1722047070756,0.02343281,67903.0,67902.0,2.37601642]
[1722047072195,0.00032852,67903.0,67902.0,2.37601642]
[1722047073813,0.00032852,67903.0,67902.0,2.28543716]
[1722047074010,0.00032852,67903.0,67902.0,2.3759114]
[1722047074217,0.00032852,67903.0,67902.0,2.37590873]
[1722047074452,0.00032852,67903.0,67902.0,2.45410873]
[1722047075114,0.00032852,67903.0,67902.0,2.51528487]
[1722047075915,0.02343269,67903.0,67902.0,2.51528487]
[1722047076499,0.02343269,67903.0,67902.0,2.80982687]
[1722047076722,0.02343269,67903.0,67902.0,2.57938487]
[1722047076925,0.02343269,67903.0,67902.0,2.69909465]
[1722047077103,0.02343269,67903.0,67902.0,3.03777308]
[1722047077448,0.02343269,67903.0,67902.0,3.0377709]
[1722047077808,0.02343269,67903.0,67902.0,3.03799415]
[1722047078011,0.02343269,67903.0,67902.0,2.99384969]
[1722047078213,0.02343269,67903.0,67902.0,3.03799415]
[1722047080732,0.02343269,67903.0,67902.0,3.03800603]
[1722047081150,0.02343269,67903.0,67902.0,2.99381524]
[1722047082914,0.02343269,67903.0,67902.0,3.38674914]
[1722047083048,0.00032852,67903.0,67902.0,3.38674914]
[1722047084045,0.00032852,67903.0,67902.0,3.11521306]
[1722047084240,0.00032852,67903.0,67902.0,3.38622588]
[1722047086071,0.00032852,67903.0,67902.0,2.99329198]
[1722047086471,0.02343187,67903.0,67902.0,3.02283198]
[1722047087413,0.02343187,67903.0,67902.0,2.94692593]
[1722047087610,0.02343187,67903.0,67902.0,2.994099]
[1722047087933,0.02343187,67903.0,67902.0,3.008099]
[1722047088273,0.02343187,67903.0,67902.0,3.06624764]
[1722047088479,0.02343187,67903.0,67902.0,3.022099]
[1722047088922,0.02343187,67903.0,67902.0,3.008099]
[1722047089943,0.02343187,67903.0,67902.0,2.994099]
[1722047090338,0.02343187,67903.0,67902.0,3.008099]
[1722047090755,0.02343187,67903.0,67902.0,2.96092593]
[1722047090964,0.02343187,67903.0,67902.0,3.02209895]
[1722047091322,0.02343187,67903.0,67902.0,3.00809895]
[1722047091523,0.02343187,67903.0,67902.0,3.08832178]
[1722047093743,0.02343187,67903.0,67902.0,3.08924578]
[1722047094312,0.02343187,67903.0,67902.0,3.0886483]
[1722047096537,0.00032852,67903.0,67902.0,3.0886483]
[1722047097549,0.00032852,67903.0,67902.0,3.08865533]
[1722047098745,0.00032852,67903.0,67902.0,3.38319733]
[1722047098951,0.00032852,67903.0,67902.0,3.41534766]
[1722047099546,0.00032852,67903.0,67902.0,3.64367151]
[1722047100825,0.00032852,67903.0,67902.0,3.31697849]
[1722047101044,0.00032852,67903.0,67902.0,3.64366287]
[1722047101213,0.02343187,67903.0,67902.0,3.64366287]
[1722047101414,0.00032852,67903.0,67902.0,3.64366287]
[1722047102058,0.00032852,67903.0,67902.0,3.73194441]
[1722047102950,0.0083,67907.0,67906.0,2.06628059]
[1722047103228,0.0083,67907.0,67906.0,3.01018972]
[1722047103441,0.0083,67907.0,67906.0,3.01026525]
[1722047104249,0.03140405,67907.0,67906.0,3.01026525]
[1722047104527,0.03140405,67907.0,67906.0,3.02426525]
[1722047104746,0.0083,67907.0,67906.0,3.02426525]
[1722047104918,0.0083,67907.0,67906.0,3.03826525]
[1722047106102,0.0083,67909.0,67908.0,0.30189859]
[1722047106299,0.0083,67909.0,67908.0,1.64022102]
[1722047106531,0.0083,67909.0,67908.0,2.58626902]
[1722047106702,0.0083,67909.0,67908.0,3.17462334]
[1722047107321,0.0083,67909.0,67908.0,3.18862334]
[1722047107520,0.0083,67909.0,67908.0,3.20262334]
[1722047108065,0.03140246,67909.0,67908.0,3.20262334]
[1722047108821,0.03140246,67909.0,67908.0,3.59546652]
[1722047109270,0.0083,67909.0,67908.0,3.26881298]
[1722047109881,0.0083,67909.0,67908.0,3.23216334]
[1722047110051,0.0083,67909.0,67908.0,3.29833643]
[1722047110585,0.0083,67909.0,67908.0,3.23216991]
[1722047110711,0.0083,67909.0,67908.0,3.21816991]
[1722047110912,0.0083,67909.0,67908.0,3.29833643]
[1722047111521,0.0083,67909.0,67908.0,3.21816991]
[1722047112594,0.03140233,67909.0,67908.0,3.21816991]
[1722047112803,0.0083,67909.0,67908.0,3.61098491]
[1722047113005,0.0083,67909.0,67908.0,3.54481839]
[1722047113214,0.00084,67910.0,67909.0,2.24575959]
[1722047113442,0.00084,67910.0,67909.0,3.14490058]
[1722047114576,0.00084,67910.0,67909.0,3.24090058]
[1722047114875,0.00084,67910.0,67909.0,3.25490058]
[1722047116265,0.02394156,67910.0,67909.0,3.25490058]
[1722047116451,0.02394156,67910.0,67909.0,2.90182916]
[1722047116452,0.16404156,67910.0,67909.0,2.90182916]
[1722047116591,0.16404156,67910.0,67909.0,2.75952779]
[1722047116787,0.16404156,67910.0,67909.0,2.69836092]
[1722047117213,0.16404156,67910.0,67909.0,2.58352092]
[1722047117476,0.14094,67910.0,67909.0,2.69633092]
[1722047117671,0.14094,67910.0,67909.0,2.69833092]
[1722047118222,0.07724,67910.0,67909.0,2.69833092]
[1722047119699,0.07724,67910.0,67909.0,2.60928816]
[1722047120053,0.07724,67910.0,67909.0,2.69777862]
[1722047120583,0.10034224,67910.0,67909.0,2.69777862]
[1722047121183,0.07724,67910.0,67909.0,2.69777862]
[1722047121798,0.07724,67910.0,67909.0,2.68377862]
[1722047122278,0.00084,67910.0,67909.0,2.69777862]
[1722047122403,0.00084,67910.0,67909.0,2.44588003]
[1722047122629,0.00084,67910.0,67909.0,2.43188003]
[1722047122832,0.00084,67910.0,67909.0,2.68377862]
[1722047123030,0.00084,67910.0,67909.0,2.6859242]
[1722047124040,0.00084,67910.0,67909.0,2.6999242]
[1722047124465,0.02394215,67910.0,67909.0,2.6999242]
[1722047125241,0.00084,67910.0,67909.0,2.6999242]
[1722047126686,0.00084,67910.0,67909.0,2.70003141]
[1722047128496,0.00084,67910.0,67909.0,2.76119964]
[1722047129763,0.00084,67910.0,67909.0,2.67045639]
[1722047129977,0.00084,67910.0,67909.0,2.76119448]
[1722047132956,0.02394212,67910.0,67909.0,2.76119448]
[1722047133170,0.02394212,67910.0,67909.0,2.70002625]
[1722047133400,0.00084,67910.0,67909.0,2.76119448]
[1722047136512,0.023942,67910.0,67909.0,2.76132158]
[1722047139889,0.023942,67910.0,67909.0,2.76131727]
[1722047140130,0.00084,67910.0,67909.0,2.76131727]
[1722047140568,0.00066277,67910.0,67909.0,2.76131727]
[1722047141448,0.00066277,67910.0,67909.0,2.60928816]
[1722047142108,0.00066277,67910.0,67909.0,2.76129388]
[1722047142585,0.00066277,67910.0,67909.0,2.67045639]
[1722047143413,0.02376473,67910.0,67909.0,2.67045639]
[1722047143933,0.00066277,67910.0,67909.0,2.81405639]
[1722047145036,0.00066277,67910.0,67909.0,2.96368922]
[1722047145247,0.00066277,67910.0,67909.0,3.02485745]
[1722047146593,0.00066277,67910.0,67909.0,3.0248711]
[1722047147026,0.02376425,67910.0,67909.0,2.9437711]
[1722047148221,0.00066277,67910.0,67909.0,2.94377165]
[1722047148661,0.00066277,67910.0,67909.0,2.94375952]
[1722047149669,0.00066277,67910.0,67909.0,2.94376056]
[1722047149876,0.00066277,67910.0,67909.0,2.98790276]
[1722047151530,0.02376418,67910.0,67909.0,2.98790276]
[1722047151959,0.02376418,67910.0,67909.0,2.98793626]
[1722047152963,0.00066277,67910.0,67909.0,2.98793626]
[1722047155406,0.00066277,67910.0,67909.0,2.99187402]
[1722047155964,0.02376418,67910.0,67909.0,2.99187402]
[1722047157500,0.00066277,67910.0,67909.0,2.99187402]
[1722047158338,0.00066277,67910.0,67909.0,2.99279802]
[1722047158771,0.00066277,67910.0,67909.0,2.99281945]
[1722047160407,0.00066277,67910.0,67909.0,2.94866746]
[1722047160639,0.00066277,67910.0,67909.0,2.88616746]
[1722047161157,0.00066277,67910.0,67909.0,2.67138019]
[1722047161358,0.00066277,67910.0,67909.0,2.88606602]
[1722047162289,0.02376442,67910.0,67909.0,3.27898195]
[1722047162537,0.00066277,67910.0,67909.0,3.27898195]
[1722047164069,0.02376442,67910.0,67909.0,3.27898195]
[1722047164576,0.02376442,67910.0,67909.0,3.27900919]
[1722047165267,0.00066277,67910.0,67909.0,3.27900919]
[1722047168008,0.00066277,67910.0,67909.0,3.27915212]
[1722047168215,0.02376442,67910.0,67909.0,3.27915212]
[1722047169336,0.00066277,67910.0,67909.0,3.27915212]
[1722047171318,0.00066277,67910.0,67909.0,3.27909089]
[1722047172659,0.02376464,67910.0,67909.0,3.27909089]
[1722047173112,0.00066277,67910.0,67909.0,3.27909089]
[1722047173544,0.00066277,67910.0,67909.0,3.26409089]
[1722047173978,0.00066277,67910.0,67909.0,3.32549089]
[1722047174533,0.0775,67918.0,67917.0,0.28689859]
[1722047174737,0.12954605,67918.0,67917.0,2.33503001]
[1722047176377,0.15264698,67918.0,67917.0,2.34903001]
[1722047176549,0.12954605,67918.0,67917.0,2.34903001]
[1722047177343,0.12954605,67918.0,67917.0,2.36303001]
[1722047177750,0.12954605,67918.0,67917.0,2.27008416]
[1722047177996,0.12954605,67918.0,67917.0,2.36443435]
[1722047180470,0.12954605,67918.0,67917.0,2.36243435]
[1722047181095,0.15264698,67918.0,67917.0,2.36239287]
[1722047181505,0.12954605,67918.0,67917.0,2.36239287]
[1722047184276,0.15264698,67918.0,67917.0,2.36239287]
[1722047184539,0.12954605,67918.0,67917.0,2.26808416]
[1722047184768,0.12954605,67918.0,67917.0,2.36238319]
[1722047187954,0.15264691,67918.0,67917.0,2.3623679]
[1722047188134,0.12954605,67918.0,67917.0,2.3623679]
[1722047190646,0.13038605,67918.0,67917.0,2.3623679]
[1722047191022,0.05288605,67918.0,67917.0,2.3623679]
[1722047191219,0.05288605,67918.0,67917.0,2.36238589]
[1722047192637,0.07598691,67918.0,67917.0,2.36238589]
[1722047193082,0.05288605,67918.0,67917.0,2.36238589]
[1722047194647,0.05288605,67918.0,67917.0,2.36241977]
[1722047195882,0.07598667,67918.0,67917.0,2.36241977]
[1722047196093,0.05288605,67918.0,67917.0,2.36241977]
[1722047197853,0.05288605,67918.0,67917.0,2.36228891]
[1722047198481,0.05288605,67918.0,67917.0,2.37086168]
[1722047199327,0.07598667,67918.0,67917.0,2.37086168]
[1722047199884,0.05288605,67918.0,67917.0,2.37086168]
[1722047201116,0.05288605,67918.0,67917.0,2.27665693]
[1722047201345,0.05288605,67918.0,67917.0,2.37086413]
[1722047203165,0.07598667,67918.0,67917.0,2.37086413]
[1722047203470,0.07598667,67918.0,67917.0,2.37082852]
[1722047203670,0.07598667,67918.0,67917.0,2.66730552]
[1722047204557,0.07598667,67918.0,67917.0,2.27865693]
[1722047204691,0.07598667,67918.0,67917.0,2.37282426]
[1722047206657,0.07598667,67918.0,67917.0,2.27865693]
[1722047206868,0.07598667,67918.0,67917.0,2.37079857]
[1722047209901,0.05288605,67918.0,67917.0,2.37079857]
[1722047214303,0.05270882,67918.0,67917.0,2.37079857]
[1722047214519,0.05270882,67918.0,67917.0,2.51439857]
[1722047214721,0.05270882,67918.0,67917.0,2.42909857]
[1722047214926,0.05270882,67918.0,67917.0,2.51639857]
[1722047217060,0.07580944,67918.0,67917.0,2.51639857]
[1722047217393,0.05270882,67918.0,67917.0,2.51639857]
[1722047218034,0.05270882,67918.0,67917.0,2.51702007]
[1722047220351,0.05270882,67918.0,67917.0,2.43172007]
[1722047220555,0.07580944,67918.0,67917.0,2.51502007]
[1722047220759,0.07580944,67918.0,67917.0,2.42025693]
[1722047220969,0.05270882,67918.0,67917.0,2.51512743]
[1722047222433,0.05270882,67918.0,67917.0,2.51712743]
[1722047223715,0.05270882,67918.0,67917.0,2.42225693]
[1722047223989,0.05270882,67918.0,67917.0,2.51955273]
[1722047224195,0.05270882,67918.0,67917.0,2.52055273]
[1722047224398,0.07580944,67918.0,67917.0,2.52055273]
[1722047224614,0.05270882,67918.0,67917.0,2.52055273]
[1722047225017,0.05270882,67918.0,67917.0,2.81502973]
[1722047225357,0.05270882,67918.0,67917.0,2.52055273]